[Event "Titled Tuesday Blitz June 20 Early 2023"]
[White "Ning, Kaiyu"]
[Black "Quesada Perez, Yuniesky"]
[WhiteFideId "8614750"]
[BlackFideId "3504409"]
[WhiteElo "2287"]
[BlackElo "2585"]
[Result "1-0"]
[Round "10"]
[TimeControl "180+2"]
[Date "2023.06.20"]
[WhiteClock "0:00:06"]
[BlackClock "0:00:00"]
[Board "29"]

1. e4 {[%clk 0:03:00]}  d5 {[%clk 0:02:58]} 2. exd5 {[%clk 0:02:59]}  Qxd5 {[%clk 0:02:59]} 3. Nc3 {[%clk 0:02:59]}  Qa5 {[%clk 0:02:59]} 4. d4 {[%clk 0:02:58]}  Nf6 {[%clk 0:02:59]} 5. Nf3 {[%clk 0:02:58]}  Bf5 {[%clk 0:02:59]} 6. Bc4 {[%clk 0:02:50]}  e6 {[%clk 0:02:59]} 7. Bd2 {[%clk 0:02:46]}  Bb4 {[%clk 0:02:59]} 8. Ne5 {[%clk 0:02:33]}  Nbd7 {[%clk 0:02:54]} 9. f4 {[%clk 0:02:28]}  Nxe5 {[%clk 0:02:37]} 10. fxe5 {[%clk 0:02:24]}  Nd5 {[%clk 0:02:01]} 11. Nxd5 {[%clk 0:02:12]}  exd5 {[%clk 0:02:02]} 12. Bb3 {[%clk 0:01:58]}  c6 {[%clk 0:01:59]} 13. c3 {[%clk 0:01:47]}  Be7 {[%clk 0:01:58]} 14. O-O {[%clk 0:01:46]}  Bg6 {[%clk 0:01:52]} 15. Bc2 {[%clk 0:01:44]}  O-O {[%clk 0:01:45]} 16. Bxg6 {[%clk 0:01:44]}  hxg6 {[%clk 0:01:46]} 17. Qg4 {[%clk 0:01:39]}  Qc7 {[%clk 0:01:27]} 18. e6 {[%clk 0:01:32]}  Bf6 {[%clk 0:01:21]} 19. Bf4 {[%clk 0:01:28]}  Qe7 {[%clk 0:01:20]} 20. Rae1 {[%clk 0:01:22]}  Rae8 {[%clk 0:01:17]} 21. exf7+ {[%clk 0:00:48]}  Qxf7 {[%clk 0:01:17]} 22. Be5 {[%clk 0:00:48]}  Re6 {[%clk 0:01:10]} 23. h3 {[%clk 0:00:36]}  Rfe8 {[%clk 0:01:07]} 24. Rd1 {[%clk 0:00:30]}  R8e7 {[%clk 0:01:00]} 25. Bxf6 {[%clk 0:00:30]}  gxf6 {[%clk 0:00:59]} 26. Rd3 {[%clk 0:00:28]}  Re4 {[%clk 0:00:55]} 27. Qg3 {[%clk 0:00:23]}  Kg7 {[%clk 0:00:54]} 28. Rdf3 {[%clk 0:00:23]}  f5 {[%clk 0:00:52]} 29. Qb8 {[%clk 0:00:23]}  Re2 {[%clk 0:00:44]} 30. R1f2 {[%clk 0:00:15]}  Rxf2 {[%clk 0:00:41]} 31. Rxf2 {[%clk 0:00:15]}  a6 {[%clk 0:00:36]} 32. Qg3 {[%clk 0:00:14]}  Qe6 {[%clk 0:00:36]} 33. Kh2 {[%clk 0:00:14]}  Qe3 {[%clk 0:00:33]} 34. Rf3 {[%clk 0:00:11]}  Qe1 {[%clk 0:00:32]} 35. Qg5 {[%clk 0:00:10]}  Qe6 {[%clk 0:00:29]} 36. Rxf5 {[%clk 0:00:10]}  Qxf5 {[%clk 0:00:16]} 37. Qxe7+ {[%clk 0:00:10]}  Kh6 {[%clk 0:00:17]} 38. Qe3+ {[%clk 0:00:09]}  Kh7 {[%clk 0:00:17]} 39. Kg3 {[%clk 0:00:09]}  Qf7 {[%clk 0:00:10]} 40. Qf2 {[%clk 0:00:09]}  Qe7 {[%clk 0:00:10]} 41. Kh2 {[%clk 0:00:09]}  Qd6+ {[%clk 0:00:09]} 42. Kg1 {[%clk 0:00:09]}  Qe7 {[%clk 0:00:09]} 43. Kf1 {[%clk 0:00:09]}  Kg7 {[%clk 0:00:05]} 44. Qe2 {[%clk 0:00:09]}  Qf7+ {[%clk 0:00:05]} 45. Ke1 {[%clk 0:00:09]}  Kh7 {[%clk 0:00:05]} 46. Kd2 {[%clk 0:00:09]}  Qf4+ {[%clk 0:00:05]} 47. Kc2 {[%clk 0:00:09]}  Qf5+ {[%clk 0:00:05]} 48. Kb3 {[%clk 0:00:06]}  Qf7 {[%clk 0:00:03]} 49. a3 {[%clk 0:00:06]}  Qc7 {[%clk 0:00:03]} 50. Ka2 {[%clk 0:00:06]}  a5 {[%clk 0:00:03]} 51. a4 {[%clk 0:00:06]}  Qd7 {[%clk 0:00:00]} 52. Qf3 {[%clk 0:00:06]} 1-0


[Site "https://www.chess.com"]

[Event "Titled Tuesday Blitz June 20 Early 2023"]
[White "Akhmedinov, Satbek"]
[Black "Seo, Jung Min"]
[WhiteFideId "13714287"]
[BlackFideId "1734687"]
[WhiteElo "1998"]
[BlackElo "2468"]
[Result "0-1"]
[Round "10"]
[TimeControl "180+2"]
[Date "2023.06.20"]
[WhiteClock "0:01:01"]
[BlackClock "0:01:28"]
[Board "34"]

1. e4 {[%clk 0:03:00]}  e5 {[%clk 0:02:57]} 2. Nf3 {[%clk 0:03:01]}  Nc6 {[%clk 0:02:57]} 3. Bc4 {[%clk 0:03:01]}  Nf6 {[%clk 0:02:56]} 4. Ng5 {[%clk 0:03:01]}  d5 {[%clk 0:02:56]} 5. exd5 {[%clk 0:03:02]}  Na5 {[%clk 0:02:53]} 6. Bb5+ {[%clk 0:03:02]}  c6 {[%clk 0:02:52]} 7. dxc6 {[%clk 0:03:03]}  bxc6 {[%clk 0:02:52]} 8. Be2 {[%clk 0:03:04]}  h6 {[%clk 0:02:51]} 9. Nh3 {[%clk 0:03:04]}  Bc5 {[%clk 0:02:49]} 10. c3 {[%clk 0:03:03]}  Nb7 {[%clk 0:02:47]} 11. O-O {[%clk 0:03:02]}  O-O {[%clk 0:02:45]} 12. Kh1 {[%clk 0:03:03]}  Bxh3 {[%clk 0:02:44]} 13. gxh3 {[%clk 0:03:03]}  Qd7 {[%clk 0:02:44]} 14. Bg4 {[%clk 0:03:03]}  Nxg4 {[%clk 0:02:42]} 15. Qxg4 {[%clk 0:03:04]}  f5 {[%clk 0:02:41]} 16. Qg2 {[%clk 0:03:03]}  e4 {[%clk 0:02:36]} 17. b4 {[%clk 0:02:59]}  Bb6 {[%clk 0:02:31]} 18. d4 {[%clk 0:02:54]}  exd3 {[%clk 0:02:18]} 19. Bxh6 {[%clk 0:02:54]}  Rf6 {[%clk 0:02:18]} 20. Bg5 {[%clk 0:02:54]}  Re6 {[%clk 0:02:15]} 21. Nd2 {[%clk 0:02:53]}  Nd6 {[%clk 0:02:14]} 22. Rae1 {[%clk 0:02:53]}  Rae8 {[%clk 0:02:14]} 23. Nf3 {[%clk 0:02:46]}  Re2 {[%clk 0:02:09]} 24. Bf4 {[%clk 0:02:24]}  Ne4 {[%clk 0:02:06]} 25. Ne5 {[%clk 0:02:18]}  Qd5 {[%clk 0:01:46]} 26. Rd1 {[%clk 0:01:36]}  Rxe5 {[%clk 0:01:37]} 27. Bxe5 {[%clk 0:01:34]}  Qxe5 {[%clk 0:01:32]} 28. Rfe1 {[%clk 0:01:02]}  Nxf2+ {[%clk 0:01:28]} 29. Qxf2 {[%clk 0:01:01]}  Bxf2 {[%clk 0:01:28]} 0-1


[Site "https://www.chess.com"]

[Event "Titled Tuesday Blitz June 20 Early 2023"]
[White "angelgab3"]
[Black "Rohith Krishna S"]
[BlackFideId "46617051"]
[WhiteElo "2550"]
[BlackElo "2270"]
[Result "0-1"]
[Round "10"]
[TimeControl "180+2"]
[Date "2023.06.20"]
[WhiteClock "0:01:22"]
[BlackClock "0:01:38"]
[Board "35"]

1. e4 {[%clk 0:03:00]}  e5 {[%clk 0:02:58]} 2. Nf3 {[%clk 0:03:00]}  Nc6 {[%clk 0:02:56]} 3. Bb5 {[%clk 0:03:01]}  Nge7 {[%clk 0:02:56]} 4. O-O {[%clk 0:03:00]}  a6 {[%clk 0:02:55]} 5. Ba4 {[%clk 0:03:00]}  d6 {[%clk 0:02:52]} 6. c3 {[%clk 0:02:58]}  Ng6 {[%clk 0:02:51]} 7. d4 {[%clk 0:02:58]}  Bd7 {[%clk 0:02:51]} 8. Nbd2 {[%clk 0:02:56]}  h6 {[%clk 0:02:49]} 9. Re1 {[%clk 0:02:56]}  Be7 {[%clk 0:02:49]} 10. Nf1 {[%clk 0:02:56]}  Bg5 {[%clk 0:02:49]} 11. Ng3 {[%clk 0:02:54]}  Bxc1 {[%clk 0:02:26]} 12. Rxc1 {[%clk 0:02:54]}  b5 {[%clk 0:02:22]} 13. Bb3 {[%clk 0:02:43]}  Nf4 {[%clk 0:02:22]} 14. Bd5 {[%clk 0:02:40]}  Qf6 {[%clk 0:02:21]} 15. dxe5 {[%clk 0:02:35]}  dxe5 {[%clk 0:02:18]} 16. Nf5 {[%clk 0:02:22]}  O-O {[%clk 0:02:17]} 17. Ne3 {[%clk 0:02:22]}  Rad8 {[%clk 0:02:15]} 18. g3 {[%clk 0:02:21]}  Nh3+ {[%clk 0:02:09]} 19. Kg2 {[%clk 0:02:20]}  Ne7 {[%clk 0:02:10]} 20. Nh4 {[%clk 0:02:00]}  Qxf2+ {[%clk 0:02:04]} 21. Kh1 {[%clk 0:01:58]}  Qxb2 {[%clk 0:01:53]} 22. Qf3 {[%clk 0:01:45]}  Nxd5 {[%clk 0:01:51]} 23. Nxd5 {[%clk 0:01:43]}  Be6 {[%clk 0:01:48]} 24. Nf5 {[%clk 0:01:25]}  Qf2 {[%clk 0:01:38]} 25. Qxf2 {[%clk 0:01:23]}  Nxf2+ {[%clk 0:01:38]} 26. Kg2 {[%clk 0:01:22]}  Nd3 {[%clk 0:01:38]} 0-1


[Site "https://www.chess.com"]

[Event "Titled Tuesday Blitz June 20 Early 2023"]
[White "Baskakov, Egor"]
[Black "Eugene, Floryan"]
[WhiteFideId "24197866"]
[BlackFideId "20694784"]
[WhiteElo "2225"]
[BlackElo "2369"]
[Result "0-1"]
[Round "10"]
[TimeControl "180+2"]
[Date "2023.06.20"]
[WhiteClock "0:00:16"]
[BlackClock "0:00:18"]
[Board "39"]

1. e4 {[%clk 0:03:00]}  c5 {[%clk 0:02:59]} 2. Nf3 {[%clk 0:03:00]}  Nc6 {[%clk 0:03:00]} 3. Nc3 {[%clk 0:03:00]}  Nf6 {[%clk 0:02:55]} 4. e5 {[%clk 0:02:58]}  Ng4 {[%clk 0:02:54]} 5. Qe2 {[%clk 0:02:58]}  f6 {[%clk 0:02:54]} 6. exf6 {[%clk 0:02:58]}  Nxf6 {[%clk 0:02:55]} 7. g3 {[%clk 0:02:58]}  e6 {[%clk 0:02:54]} 8. Bg2 {[%clk 0:02:59]}  d5 {[%clk 0:02:53]} 9. O-O {[%clk 0:02:59]}  Bd6 {[%clk 0:02:52]} 10. d4 {[%clk 0:02:56]}  O-O {[%clk 0:02:37]} 11. dxc5 {[%clk 0:02:54]}  Bxc5 {[%clk 0:02:35]} 12. Bg5 {[%clk 0:02:54]}  Qe8 {[%clk 0:02:21]} 13. Rad1 {[%clk 0:02:38]}  Qh5 {[%clk 0:02:15]} 14. Bf4 {[%clk 0:02:32]}  Bd7 {[%clk 0:02:07]} 15. h3 {[%clk 0:02:18]}  Rae8 {[%clk 0:02:02]} 16. Ne5 {[%clk 0:02:14]}  Qxe2 {[%clk 0:01:47]} 17. Nxe2 {[%clk 0:02:15]}  Nxe5 {[%clk 0:01:45]} 18. Bxe5 {[%clk 0:02:16]}  Bb5 {[%clk 0:01:42]} 19. Rd2 {[%clk 0:02:11]}  Ne4 {[%clk 0:01:34]} 20. Bxe4 {[%clk 0:02:09]}  dxe4 {[%clk 0:01:34]} 21. Bf4 {[%clk 0:02:07]}  Rxf4 {[%clk 0:01:32]} 22. Nxf4 {[%clk 0:02:01]}  e3 {[%clk 0:01:30]} 23. fxe3 {[%clk 0:01:58]}  Bxe3+ {[%clk 0:01:29]} 24. Rff2 {[%clk 0:01:58]}  g5 {[%clk 0:01:23]} 25. Nd3 {[%clk 0:01:44]}  e5 {[%clk 0:01:09]} 26. a4 {[%clk 0:01:35]}  Bxa4 {[%clk 0:01:02]} 27. Re2 {[%clk 0:01:31]}  Bxf2+ {[%clk 0:01:00]} 28. Kxf2 {[%clk 0:01:21]}  e4 {[%clk 0:00:58]} 29. Nc5 {[%clk 0:01:16]}  Bc6 {[%clk 0:00:58]} 30. Ke3 {[%clk 0:01:16]}  b6 {[%clk 0:00:57]} 31. Nb3 {[%clk 0:01:16]}  Rf8 {[%clk 0:00:41]} 32. Nd4 {[%clk 0:01:13]}  Bb7 {[%clk 0:00:41]} 33. b3 {[%clk 0:01:05]}  Rf1 {[%clk 0:00:35]} 34. c4 {[%clk 0:01:03]}  Kf7 {[%clk 0:00:34]} 35. Ra2 {[%clk 0:01:02]}  a6 {[%clk 0:00:32]} 36. b4 {[%clk 0:00:52]}  Rd1 {[%clk 0:00:29]} 37. Ra3 {[%clk 0:00:45]}  Rc1 {[%clk 0:00:28]} 38. b5 {[%clk 0:00:36]}  a5 {[%clk 0:00:28]} 39. Nf5 {[%clk 0:00:18]}  Ke6 {[%clk 0:00:23]} 40. g4 {[%clk 0:00:16]}  Rxc4 {[%clk 0:00:19]} 41. Ra1 {[%clk 0:00:16]}  Rc3+ {[%clk 0:00:18]} 42. Kd4 {[%clk 0:00:15]}  Rd3+ {[%clk 0:00:17]} 43. Kc4 {[%clk 0:00:16]}  Bd5# {[%clk 0:00:18]} 0-1


[Site "https://www.chess.com"]

[Event "Titled Tuesday Blitz June 20 Early 2023"]
[White "Sethuraman, S.P."]
[Black "ATM622"]
[WhiteFideId "5021596"]
[WhiteElo "2543"]
[BlackElo "2631"]
[Result "1-0"]
[Round "10"]
[TimeControl "180+2"]
[Date "2023.06.20"]
[WhiteClock "0:01:35"]
[BlackClock "0:00:27"]
[Board "40"]

1. d4 {[%clk 0:03:00]}  Nf6 {[%clk 0:02:59]} 2. c4 {[%clk 0:03:00]}  e6 {[%clk 0:02:59]} 3. Nc3 {[%clk 0:03:01]}  Bb4 {[%clk 0:02:59]} 4. a3 {[%clk 0:03:01]}  Bxc3+ {[%clk 0:02:57]} 5. bxc3 {[%clk 0:03:02]}  O-O {[%clk 0:02:57]} 6. e3 {[%clk 0:03:02]}  b6 {[%clk 0:02:57]} 7. Bd3 {[%clk 0:03:00]}  Bb7 {[%clk 0:02:56]} 8. f3 {[%clk 0:03:01]}  d5 {[%clk 0:02:54]} 9. cxd5 {[%clk 0:03:00]}  exd5 {[%clk 0:02:52]} 10. Ne2 {[%clk 0:03:00]}  c5 {[%clk 0:02:52]} 11. g4 {[%clk 0:03:00]}  c4 {[%clk 0:02:50]} 12. Bb1 {[%clk 0:02:56]}  Nc6 {[%clk 0:02:45]} 13. Kf2 {[%clk 0:02:51]}  Re8 {[%clk 0:02:37]} 14. Ng3 {[%clk 0:02:50]}  Na5 {[%clk 0:02:31]} 15. Ra2 {[%clk 0:02:47]}  Bc6 {[%clk 0:02:26]} 16. h4 {[%clk 0:02:38]}  Nb3 {[%clk 0:02:21]} 17. Re2 {[%clk 0:02:37]}  Ba4 {[%clk 0:02:20]} 18. Qe1 {[%clk 0:02:35]}  Qc7 {[%clk 0:01:56]} 19. Bb2 {[%clk 0:02:30]}  Bd7 {[%clk 0:01:38]} 20. g5 {[%clk 0:02:29]}  Ng4+ {[%clk 0:01:34]} 21. fxg4 {[%clk 0:02:27]}  Bxg4 {[%clk 0:01:34]} 22. Kg2 {[%clk 0:02:03]}  Bxe2 {[%clk 0:01:31]} 23. Qxe2 {[%clk 0:02:04]}  b5 {[%clk 0:01:17]} 24. Qf2 {[%clk 0:01:59]}  a5 {[%clk 0:01:13]} 25. h5 {[%clk 0:01:59]}  b4 {[%clk 0:01:09]} 26. h6 {[%clk 0:01:54]}  Qe7 {[%clk 0:00:39]} 27. Bxh7+ {[%clk 0:01:36]}  Kxh7 {[%clk 0:00:33]} 28. hxg7+ {[%clk 0:01:36]}  Kg8 {[%clk 0:00:27]} 29. Qf6 {[%clk 0:01:35]} 1-0


[Site "https://www.chess.com"]

[Event "Titled Tuesday Blitz June 20 Early 2023"]
[White "Kumsiashvili, Nikoloz"]
[Black "Maksimovic, Bojan"]
[WhiteFideId "13600621"]
[BlackFideId "14408120"]
[WhiteElo "2299"]
[BlackElo "2457"]
[Result "1-0"]
[Round "10"]
[TimeControl "180+2"]
[Date "2023.06.20"]
[WhiteClock "0:00:05"]
[BlackClock "0:00:00"]
[Board "41"]

1. c4 {[%clk 0:03:00]}  Nf6 {[%clk 0:02:52]} 2. Nc3 {[%clk 0:03:00]}  d5 {[%clk 0:02:50]} 3. d4 {[%clk 0:02:59]}  dxc4 {[%clk 0:02:36]} 4. e3 {[%clk 0:02:56]}  e5 {[%clk 0:02:33]} 5. Bxc4 {[%clk 0:02:39]}  exd4 {[%clk 0:02:33]} 6. exd4 {[%clk 0:02:37]}  Bd6 {[%clk 0:02:33]} 7. Nf3 {[%clk 0:02:33]}  O-O {[%clk 0:02:31]} 8. O-O {[%clk 0:02:34]}  h6 {[%clk 0:02:31]} 9. h3 {[%clk 0:02:33]}  Nc6 {[%clk 0:02:30]} 10. Be3 {[%clk 0:02:27]}  Bf5 {[%clk 0:02:30]} 11. a3 {[%clk 0:02:25]}  Ne4 {[%clk 0:02:27]} 12. Bd3 {[%clk 0:02:14]}  Nxc3 {[%clk 0:02:22]} 13. bxc3 {[%clk 0:02:15]}  Bxd3 {[%clk 0:02:20]} 14. Qxd3 {[%clk 0:02:16]}  Re8 {[%clk 0:02:17]} 15. c4 {[%clk 0:01:57]}  Na5 {[%clk 0:02:11]} 16. Bd2 {[%clk 0:01:48]}  c5 {[%clk 0:02:09]} 17. d5 {[%clk 0:01:39]}  a6 {[%clk 0:01:47]} 18. Rab1 {[%clk 0:01:36]}  Rb8 {[%clk 0:01:38]} 19. Bc3 {[%clk 0:01:03]}  Bf8 {[%clk 0:00:51]} 20. Nd2 {[%clk 0:00:58]}  Nc6 {[%clk 0:00:40]} 21. Rfd1 {[%clk 0:00:46]}  Ne5 {[%clk 0:00:27]} 22. Qg3 {[%clk 0:00:35]}  Ng6 {[%clk 0:00:28]} 23. Nb3 {[%clk 0:00:28]}  Bd6 {[%clk 0:00:28]} 24. Qd3 {[%clk 0:00:28]}  Qh4 {[%clk 0:00:28]} 25. Re1 {[%clk 0:00:19]}  b5 {[%clk 0:00:28]} 26. Na5 {[%clk 0:00:17]}  Rxe1+ {[%clk 0:00:26]} 27. Rxe1 {[%clk 0:00:17]}  b4 {[%clk 0:00:27]} 28. axb4 {[%clk 0:00:15]}  cxb4 {[%clk 0:00:27]} 29. Bd4 {[%clk 0:00:16]}  Nf4 {[%clk 0:00:26]} 30. Qf3 {[%clk 0:00:12]}  Nxh3+ {[%clk 0:00:24]} 31. Qxh3 {[%clk 0:00:11]}  Qxd4 {[%clk 0:00:24]} 32. Nc6 {[%clk 0:00:11]}  Qd2 {[%clk 0:00:25]} 33. Qe3 {[%clk 0:00:05]}  Qxe3 {[%clk 0:00:22]} 34. fxe3 {[%clk 0:00:06]}  Rb6 {[%clk 0:00:16]} 35. e4 {[%clk 0:00:06]}  f6 {[%clk 0:00:16]} 36. Rb1 {[%clk 0:00:05]}  b3 {[%clk 0:00:15]} 37. Kf2 {[%clk 0:00:06]}  Kf7 {[%clk 0:00:06]} 38. Ke2 {[%clk 0:00:06]}  Be5 {[%clk 0:00:04]} 39. Kd3 {[%clk 0:00:05]}  b2 {[%clk 0:00:04]} 40. Nxe5+ {[%clk 0:00:05]}  fxe5 {[%clk 0:00:05]} 41. Kc3 {[%clk 0:00:05]}  Rg6 {[%clk 0:00:03]} 42. Rxb2 {[%clk 0:00:05]}  Rg4 {[%clk 0:00:03]} 43. Kb4 {[%clk 0:00:04]}  Rxe4 {[%clk 0:00:03]} 44. Kc5 {[%clk 0:00:05]}  Re1 {[%clk 0:00:02]} 45. Kd6 {[%clk 0:00:04]}  e4 {[%clk 0:00:01]} 46. c5 {[%clk 0:00:04]}  e3 {[%clk 0:00:00]} 47. c6 {[%clk 0:00:05]} 1-0


[Site "https://www.chess.com"]

[Event "Titled Tuesday Blitz June 20 Early 2023"]
[White "Vlassov, Nikolai"]
[Black "Simonian, Hrair"]
[WhiteFideId "4103360"]
[BlackFideId "13302337"]
[WhiteElo "2324"]
[BlackElo "2447"]
[Result "0-1"]
[Round "10"]
[TimeControl "180+2"]
[Date "2023.06.20"]
[WhiteClock "0:00:00"]
[BlackClock "0:01:30"]
[Board "42"]

1. e4 {[%clk 0:03:00]}  c5 {[%clk 0:02:57]} 2. c3 {[%clk 0:03:00]}  d5 {[%clk 0:02:57]} 3. exd5 {[%clk 0:03:00]}  Qxd5 {[%clk 0:02:58]} 4. d4 {[%clk 0:03:00]}  g6 {[%clk 0:02:57]} 5. dxc5 {[%clk 0:02:59]}  Qxd1+ {[%clk 0:02:57]} 6. Kxd1 {[%clk 0:02:59]}  Nh6 {[%clk 0:02:57]} 7. b4 {[%clk 0:02:52]}  Ng4 {[%clk 0:02:57]} 8. Nh3 {[%clk 0:02:51]}  a5 {[%clk 0:02:57]} 9. Bb2 {[%clk 0:02:49]}  Bg7 {[%clk 0:02:51]} 10. a3 {[%clk 0:02:47]}  Nc6 {[%clk 0:02:51]} 11. Bb5 {[%clk 0:02:46]}  Bf5 {[%clk 0:02:47]} 12. Nd2 {[%clk 0:02:37]}  O-O-O {[%clk 0:02:43]} 13. Bxc6 {[%clk 0:02:36]}  bxc6 {[%clk 0:02:44]} 14. Ke1 {[%clk 0:02:06]}  Rd7 {[%clk 0:02:30]} 15. Nc4 {[%clk 0:02:04]}  Kc7 {[%clk 0:02:24]} 16. f3 {[%clk 0:01:58]}  Ne5 {[%clk 0:02:23]} 17. Nxe5 {[%clk 0:01:55]}  Bxe5 {[%clk 0:02:24]} 18. Nf2 {[%clk 0:01:53]}  Rhd8 {[%clk 0:02:22]} 19. Rd1 {[%clk 0:01:46]}  axb4 {[%clk 0:02:21]} 20. axb4 {[%clk 0:01:44]}  Bc2 {[%clk 0:02:20]} 21. Rxd7+ {[%clk 0:01:42]}  Rxd7 {[%clk 0:02:21]} 22. Ke2 {[%clk 0:01:41]}  f5 {[%clk 0:02:19]} 23. g3 {[%clk 0:01:18]}  Bb3 {[%clk 0:02:19]} 24. Ra1 {[%clk 0:01:14]}  Kb7 {[%clk 0:02:16]} 25. f4 {[%clk 0:01:10]}  Bf6 {[%clk 0:02:16]} 26. Ke3 {[%clk 0:01:04]}  e5 {[%clk 0:02:14]} 27. fxe5 {[%clk 0:00:48]}  Bxe5 {[%clk 0:02:15]} 28. Nd3 {[%clk 0:00:48]}  Bf6 {[%clk 0:02:12]} 29. Nf4 {[%clk 0:00:22]}  g5 {[%clk 0:02:10]} 30. Ne2 {[%clk 0:00:15]}  Bc4 {[%clk 0:02:10]} 31. Nd4 {[%clk 0:00:15]}  Re7+ {[%clk 0:02:10]} 32. Kf3 {[%clk 0:00:12]}  Bd5+ {[%clk 0:02:04]} 33. Kf2 {[%clk 0:00:12]}  f4 {[%clk 0:02:04]} 34. Re1 {[%clk 0:00:12]}  fxg3+ {[%clk 0:02:02]} 35. hxg3 {[%clk 0:00:13]}  Be5 {[%clk 0:02:02]} 36. Nf3 {[%clk 0:00:12]}  Rf7 {[%clk 0:01:56]} 37. Rxe5 {[%clk 0:00:12]}  Rxf3+ {[%clk 0:01:56]} 38. Ke2 {[%clk 0:00:13]}  Rxg3 {[%clk 0:01:56]} 39. Bc1 {[%clk 0:00:10]}  h6 {[%clk 0:01:49]} 40. Re7+ {[%clk 0:00:09]}  Ka6 {[%clk 0:01:49]} 41. Rh7 {[%clk 0:00:09]}  Rxc3 {[%clk 0:01:46]} 42. Bd2 {[%clk 0:00:07]}  Rh3 {[%clk 0:01:41]} 43. Bxg5 {[%clk 0:00:06]}  Rh2+ {[%clk 0:01:40]} 44. Ke3 {[%clk 0:00:06]}  Rh3+ {[%clk 0:01:38]} 45. Ke2 {[%clk 0:00:06]}  Bc4+ {[%clk 0:01:37]} 46. Kf2 {[%clk 0:00:06]}  h5 {[%clk 0:01:34]} 47. Rc7 {[%clk 0:00:04]}  Bd5 {[%clk 0:01:32]} 48. Rd7 {[%clk 0:00:02]}  Rf3+ {[%clk 0:01:31]} 49. Ke2 {[%clk 0:00:02]}  Rg3 {[%clk 0:01:31]} 50. Bh4 {[%clk 0:00:01]}  Rg4 {[%clk 0:01:31]} 51. Bd8 {[%clk 0:00:01]}  Rxb4 {[%clk 0:01:30]} 52. Rh7 {[%clk 0:00:00]}  Rb3 {[%clk 0:01:30]} 0-1


[Site "https://www.chess.com"]

[Event "Titled Tuesday Blitz June 20 Early 2023"]
[White "Hayrapetyan, Hovik"]
[Black "Ovchinnikov, Vsevolod"]
[WhiteFideId "13302639"]
[BlackFideId "24176842"]
[WhiteElo "2348"]
[BlackElo "2376"]
[Result "1-0"]
[Round "10"]
[TimeControl "180+2"]
[Date "2023.06.20"]
[WhiteClock "0:01:10"]
[BlackClock "0:00:00"]
[Board "44"]

1. d4 {[%clk 0:03:00]}  d5 {[%clk 0:02:59]} 2. c4 {[%clk 0:03:01]}  dxc4 {[%clk 0:03:00]} 3. Nf3 {[%clk 0:03:01]}  c6 {[%clk 0:03:01]} 4. e4 {[%clk 0:02:46]}  b5 {[%clk 0:03:01]} 5. a4 {[%clk 0:02:46]}  Qb6 {[%clk 0:02:29]} 6. Be3 {[%clk 0:02:41]}  e6 {[%clk 0:02:22]} 7. Be2 {[%clk 0:02:31]}  Nf6 {[%clk 0:02:12]} 8. Nbd2 {[%clk 0:02:26]}  Bb4 {[%clk 0:02:07]} 9. O-O {[%clk 0:02:23]}  a5 {[%clk 0:01:45]} 10. d5 {[%clk 0:02:15]}  Bc5 {[%clk 0:01:24]} 11. Bxc5 {[%clk 0:02:15]}  Qxc5 {[%clk 0:01:25]} 12. dxc6 {[%clk 0:02:15]}  Ba6 {[%clk 0:01:22]} 13. axb5 {[%clk 0:02:09]}  Bxb5 {[%clk 0:01:23]} 14. Nxc4 {[%clk 0:02:03]}  Bxc4 {[%clk 0:00:34]} 15. Rc1 {[%clk 0:02:00]}  O-O {[%clk 0:00:12]} 16. Rxc4 {[%clk 0:01:58]}  Qb6 {[%clk 0:00:13]} 17. Ne5 {[%clk 0:01:52]}  Na6 {[%clk 0:00:10]} 18. Qc2 {[%clk 0:01:46]}  Rfd8 {[%clk 0:00:08]} 19. c7 {[%clk 0:01:43]}  Rdc8 {[%clk 0:00:07]} 20. Rc6 {[%clk 0:01:32]}  Nb4 {[%clk 0:00:04]} 21. Rxb6 {[%clk 0:01:32]}  Nxc2 {[%clk 0:00:04]} 22. Rb7 {[%clk 0:01:29]}  Nd4 {[%clk 0:00:04]} 23. Bd3 {[%clk 0:01:25]}  Ne8 {[%clk 0:00:03]} 24. Rc1 {[%clk 0:01:23]}  a4 {[%clk 0:00:03]} 25. Nd7 {[%clk 0:01:20]}  Nd6 {[%clk 0:00:03]} 26. Rb8 {[%clk 0:01:16]}  Nb3 {[%clk 0:00:00]} 27. Rc3 {[%clk 0:01:10]} 1-0


[Site "https://www.chess.com"]

[Event "Titled Tuesday Blitz June 20 Early 2023"]
[White "MKlose11"]
[Black "Renjith, Sravan"]
[BlackFideId "4306783"]
[WhiteElo "2582"]
[BlackElo "2104"]
[Result "1-0"]
[Round "10"]
[TimeControl "180+2"]
[Date "2023.06.20"]
[WhiteClock "0:00:23"]
[BlackClock "0:00:08"]
[Board "46"]

1. e4 {[%clk 0:03:00]}  e5 {[%clk 0:02:58]} 2. Nf3 {[%clk 0:03:00]}  Nc6 {[%clk 0:02:56]} 3. d4 {[%clk 0:03:00]}  exd4 {[%clk 0:02:55]} 4. Bc4 {[%clk 0:03:00]}  Nf6 {[%clk 0:02:54]} 5. O-O {[%clk 0:03:00]}  Nxe4 {[%clk 0:02:53]} 6. Re1 {[%clk 0:03:01]}  d5 {[%clk 0:02:52]} 7. Bxd5 {[%clk 0:03:01]}  Qxd5 {[%clk 0:02:52]} 8. Nc3 {[%clk 0:03:01]}  Qh5 {[%clk 0:02:52]} 9. Nxe4 {[%clk 0:03:00]}  Be6 {[%clk 0:02:51]} 10. Bg5 {[%clk 0:02:59]}  h6 {[%clk 0:02:44]} 11. Bf6 {[%clk 0:02:58]}  Qf5 {[%clk 0:02:33]} 12. Nxd4 {[%clk 0:02:45]}  Qd5 {[%clk 0:02:17]} 13. Nxe6 {[%clk 0:02:34]}  fxe6 {[%clk 0:02:08]} 14. Qe2 {[%clk 0:02:16]}  Qf5 {[%clk 0:01:51]} 15. Bc3 {[%clk 0:02:05]}  O-O-O {[%clk 0:01:49]} 16. Ng3 {[%clk 0:02:05]}  Qf7 {[%clk 0:01:47]} 17. Qxe6+ {[%clk 0:02:05]}  Qxe6 {[%clk 0:01:45]} 18. Rxe6 {[%clk 0:02:06]}  Rg8 {[%clk 0:01:44]} 19. Rae1 {[%clk 0:02:02]}  Bc5 {[%clk 0:01:41]} 20. a3 {[%clk 0:01:51]}  Nd4 {[%clk 0:01:35]} 21. Bxd4 {[%clk 0:01:39]}  Bxd4 {[%clk 0:01:36]} 22. c3 {[%clk 0:01:39]}  Bb6 {[%clk 0:01:34]} 23. Kf1 {[%clk 0:01:38]}  Rd2 {[%clk 0:01:27]} 24. R6e2 {[%clk 0:01:36]}  Rgd8 {[%clk 0:01:24]} 25. f3 {[%clk 0:01:29]}  c6 {[%clk 0:01:09]} 26. Ne4 {[%clk 0:01:27]}  Rd1 {[%clk 0:01:04]} 27. Rxd1 {[%clk 0:01:25]}  Rxd1+ {[%clk 0:01:05]} 28. Re1 {[%clk 0:01:26]}  Rd7 {[%clk 0:01:04]} 29. Ke2 {[%clk 0:01:26]}  Bc7 {[%clk 0:01:04]} 30. h3 {[%clk 0:01:21]}  Bf4 {[%clk 0:00:58]} 31. Rd1 {[%clk 0:01:20]}  Re7 {[%clk 0:00:58]} 32. h4 {[%clk 0:01:12]}  h5 {[%clk 0:00:56]} 33. Kf2 {[%clk 0:01:12]}  Bc7 {[%clk 0:00:50]} 34. c4 {[%clk 0:01:06]}  Kb8 {[%clk 0:00:43]} 35. b4 {[%clk 0:01:04]}  a5 {[%clk 0:00:40]} 36. c5 {[%clk 0:01:03]}  Ka7 {[%clk 0:00:38]} 37. Nd6 {[%clk 0:00:58]}  Ka6 {[%clk 0:00:29]} 38. Rd4 {[%clk 0:00:55]}  Re5 {[%clk 0:00:21]} 39. Nc4 {[%clk 0:00:39]}  Kb5 {[%clk 0:00:19]} 40. Nxe5 {[%clk 0:00:38]}  Bxe5 {[%clk 0:00:18]} 41. Rd7 {[%clk 0:00:38]}  axb4 {[%clk 0:00:17]} 42. axb4 {[%clk 0:00:38]}  Kxb4 {[%clk 0:00:18]} 43. Rxb7+ {[%clk 0:00:37]}  Kxc5 {[%clk 0:00:18]} 44. Ke3 {[%clk 0:00:34]}  Kd5 {[%clk 0:00:17]} 45. Rd7+ {[%clk 0:00:33]}  Ke6 {[%clk 0:00:18]} 46. Rb7 {[%clk 0:00:26]}  Bg3 {[%clk 0:00:17]} 47. Rxg7 {[%clk 0:00:24]}  Bxh4 {[%clk 0:00:16]} 48. Rh7 {[%clk 0:00:24]}  Bf6 {[%clk 0:00:13]} 49. Rxh5 {[%clk 0:00:23]}  Kd6 {[%clk 0:00:08]} 50. Ke4 {[%clk 0:00:23]} 1-0


[Site "https://www.chess.com"]